[Event "Titled Tuesday Blitz May 10 Early 2022"]
[White "Miszler, Levente"]
[Black "Bommini, Mounika Akshaya"]
[WhiteFideId "763276"]
[BlackFideId "25019872"]
[WhiteElo "1966"]
[BlackElo "1671"]
[Result "0-1"]
[Round "08"]
[TimeControl "180+1"]
[Date "2022.05.11"]
[WhiteClock "0:02:09"]
[BlackClock "0:01:49"]

1. Nf3 {[%clk 0:03:00]}  Nf6 {[%clk 0:02:57]} 2. c4 {[%clk 0:03:00]}  c5 {[%clk 0:02:55]} 3. g3 {[%clk 0:02:59]}  Nc6 {[%clk 0:02:54]} 4. Bg2 {[%clk 0:02:59]}  g6 {[%clk 0:02:50]} 5. O-O {[%clk 0:02:58]}  Bg7 {[%clk 0:02:50]} 6. Nc3 {[%clk 0:02:57]}  O-O {[%clk 0:02:49]} 7. d3 {[%clk 0:02:57]}  d6 {[%clk 0:02:49]} 8. a3 {[%clk 0:02:57]}  e5 {[%clk 0:02:45]} 9. Rb1 {[%clk 0:02:58]}  h6 {[%clk 0:02:33]} 10. b4 {[%clk 0:02:55]}  cxb4 {[%clk 0:02:27]} 11. axb4 {[%clk 0:02:56]}  Be6 {[%clk 0:02:28]} 12. b5 {[%clk 0:02:56]}  Ne7 {[%clk 0:02:28]} 13. Nd2 {[%clk 0:02:57]}  Qd7 {[%clk 0:02:26]} 14. Qb3 {[%clk 0:02:54]}  Bh3 {[%clk 0:02:24]} 15. Ba3 {[%clk 0:02:54]}  Rfd8 {[%clk 0:02:14]} 16. Bxd6 {[%clk 0:02:23]}  Bxg2 {[%clk 0:01:58]} 17. Bxe7 {[%clk 0:02:23]}  Qh3 {[%clk 0:01:50]} 18. Bxd8 {[%clk 0:02:17]}  Ng4 {[%clk 0:01:49]} 19. Nf3 {[%clk 0:02:08]}  Bxf3 {[%clk 0:01:49]} 20. exf3 {[%clk 0:02:09]}  Qxh2# {[%clk 0:01:49]} 0-1


[Site "https://www.chess.com"]

[Event "Titled Tuesday Blitz May 10 Early 2022"]
[White "Mitrabha, Guha"]
[Black "Bachmann, Axel"]
[WhiteFideId "5057000"]
[BlackFideId "3700488"]
[WhiteElo "2468"]
[BlackElo "2587"]
[Result "0-1"]
[Round "08"]
[TimeControl "180+1"]
[Date "2022.05.10"]
[WhiteClock "0:00:09"]
[BlackClock "0:00:09"]

1. d4 {[%clk 0:03:00]}  Nf6 {[%clk 0:02:57]} 2. Nf3 {[%clk 0:03:01]}  g6 {[%clk 0:02:57]} 3. g3 {[%clk 0:03:00]}  Bg7 {[%clk 0:02:57]} 4. Bg2 {[%clk 0:03:00]}  O-O {[%clk 0:02:57]} 5. c4 {[%clk 0:02:59]}  d6 {[%clk 0:02:57]} 6. O-O {[%clk 0:02:59]}  Nbd7 {[%clk 0:02:58]} 7. Nc3 {[%clk 0:03:00]}  e5 {[%clk 0:02:58]} 8. Qc2 {[%clk 0:03:00]}  Re8 {[%clk 0:02:56]} 9. Rd1 {[%clk 0:03:00]}  c6 {[%clk 0:02:51]} 10. b3 {[%clk 0:02:58]}  e4 {[%clk 0:02:35]} 11. Ng5 {[%clk 0:02:55]}  e3 {[%clk 0:02:28]} 12. fxe3 {[%clk 0:02:33]}  Ng4 {[%clk 0:02:24]} 13. Nge4 {[%clk 0:02:28]}  Ndf6 {[%clk 0:02:22]} 14. h3 {[%clk 0:02:26]}  Nxe4 {[%clk 0:02:16]} 15. Nxe4 {[%clk 0:02:25]}  Nh6 {[%clk 0:02:13]} 16. Nf2 {[%clk 0:02:24]}  Nf5 {[%clk 0:02:09]} 17. e4 {[%clk 0:02:16]}  Nxd4 {[%clk 0:02:06]} 18. Qd3 {[%clk 0:02:06]}  Nxe2+ {[%clk 0:02:03]} 19. Qxe2 {[%clk 0:02:06]}  Bxa1 {[%clk 0:02:03]} 20. c5 {[%clk 0:02:02]}  d5 {[%clk 0:01:56]} 21. Qc2 {[%clk 0:01:59]}  Qf6 {[%clk 0:01:26]} 22. exd5 {[%clk 0:01:49]}  Bf5 {[%clk 0:01:26]} 23. Qc4 {[%clk 0:01:45]}  cxd5 {[%clk 0:01:18]} 24. Bxd5 {[%clk 0:01:44]}  Rad8 {[%clk 0:00:57]} 25. Bf4 {[%clk 0:01:43]}  Be5 {[%clk 0:00:48]} 26. Bxe5 {[%clk 0:01:27]}  Rxe5 {[%clk 0:00:32]} 27. Bxf7+ {[%clk 0:01:22]}  Kg7 {[%clk 0:00:32]} 28. Rxd8 {[%clk 0:01:02]}  Qxd8 {[%clk 0:00:33]} 29. g4 {[%clk 0:01:02]}  Qf6 {[%clk 0:00:13]} 30. Bd5 {[%clk 0:00:58]}  Be6 {[%clk 0:00:12]} 31. Bxe6 {[%clk 0:00:57]}  Qxe6 {[%clk 0:00:13]} 32. Qd4 {[%clk 0:00:56]}  Qd5 {[%clk 0:00:12]} 33. Qc3 {[%clk 0:00:53]}  Qxc5 {[%clk 0:00:12]} 34. Qb2 {[%clk 0:00:48]}  Kg8 {[%clk 0:00:08]} 35. Qd2 {[%clk 0:00:46]}  Qd5 {[%clk 0:00:08]} 36. Qc2 {[%clk 0:00:39]}  Re1+ {[%clk 0:00:08]} 37. Kh2 {[%clk 0:00:39]}  Qd6+ {[%clk 0:00:05]} 38. Kg2 {[%clk 0:00:39]}  Qc6+ {[%clk 0:00:06]} 39. Qxc6 {[%clk 0:00:31]}  bxc6 {[%clk 0:00:07]} 40. Kf3 {[%clk 0:00:22]}  Ra1 {[%clk 0:00:06]} 41. Ne4 {[%clk 0:00:20]}  Rxa2 {[%clk 0:00:07]} 42. Nc5 {[%clk 0:00:21]}  Rc2 {[%clk 0:00:07]} 43. Ne4 {[%clk 0:00:20]}  Kf7 {[%clk 0:00:06]} 44. Kf4 {[%clk 0:00:20]}  Kg7 {[%clk 0:00:05]} 45. h4 {[%clk 0:00:20]}  a5 {[%clk 0:00:05]} 46. Ke5 {[%clk 0:00:18]}  Rh2 {[%clk 0:00:05]} 47. Kf4 {[%clk 0:00:08]}  Rxh4 {[%clk 0:00:05]} 48. Kg5 {[%clk 0:00:04]}  Rh1 {[%clk 0:00:05]} 49. Nc5 {[%clk 0:00:05]}  h6+ {[%clk 0:00:05]} 50. Kf4 {[%clk 0:00:05]}  Rc1 {[%clk 0:00:06]} 51. Ne6+ {[%clk 0:00:05]}  Kf6 {[%clk 0:00:06]} 52. Nd4 {[%clk 0:00:05]}  Rc3 {[%clk 0:00:06]} 53. Ke4 {[%clk 0:00:06]}  c5 {[%clk 0:00:06]} 54. Nb5 {[%clk 0:00:05]}  Rxb3 {[%clk 0:00:06]} 55. Nc7 {[%clk 0:00:06]}  Rb4+ {[%clk 0:00:07]} 56. Kd5 {[%clk 0:00:07]}  Kg5 {[%clk 0:00:08]} 57. Kxc5 {[%clk 0:00:08]}  Rxg4 {[%clk 0:00:07]} 58. Kb5 {[%clk 0:00:07]}  a4 {[%clk 0:00:07]} 59. Ne6+ {[%clk 0:00:08]}  Kh4 {[%clk 0:00:07]} 60. Nc5 {[%clk 0:00:09]}  a3 {[%clk 0:00:08]} 61. Nb3 {[%clk 0:00:09]}  a2 {[%clk 0:00:08]} 62. Na1 {[%clk 0:00:09]}  Rg1 {[%clk 0:00:09]} 0-1


[Site "https://www.chess.com"]

[Event "Titled Tuesday Blitz May 10 Early 2022"]
[White "Morefield, Jason"]
[Black "Stepanencu, Nicodim-Cosmin"]
[WhiteFideId "30920825"]
[BlackFideId "1256220"]
[WhiteElo "2171"]
[BlackElo "1945"]
[Result "1-0"]
[Round "08"]
[TimeControl "180+1"]
[Date "2022.05.11"]
[WhiteClock "0:00:06"]
[BlackClock "0:00:02"]

1. Nf3 {[%clk 0:03:00]}  b5 {[%clk 0:02:55]} 2. e4 {[%clk 0:02:50]}  Bb7 {[%clk 0:02:54]} 3. Bxb5 {[%clk 0:02:49]}  Bxe4 {[%clk 0:02:54]} 4. O-O {[%clk 0:02:50]}  Nf6 {[%clk 0:02:54]} 5. Re1 {[%clk 0:02:49]}  Bb7 {[%clk 0:02:54]} 6. d4 {[%clk 0:02:48]}  e6 {[%clk 0:02:55]} 7. c4 {[%clk 0:02:48]}  Be7 {[%clk 0:02:55]} 8. d5 {[%clk 0:02:48]}  O-O {[%clk 0:02:52]} 9. Nc3 {[%clk 0:02:47]}  c6 {[%clk 0:02:40]} 10. d6 {[%clk 0:02:22]}  cxb5 {[%clk 0:02:29]} 11. dxe7 {[%clk 0:02:19]}  Qxe7 {[%clk 0:02:29]} 12. Nxb5 {[%clk 0:02:20]}  d5 {[%clk 0:02:20]} 13. Bf4 {[%clk 0:02:18]}  Rd8 {[%clk 0:01:56]} 14. c5 {[%clk 0:01:21]}  Na6 {[%clk 0:01:39]} 15. Bd6 {[%clk 0:01:09]}  Qd7 {[%clk 0:01:24]} 16. a4 {[%clk 0:01:07]}  Ne4 {[%clk 0:01:24]} 17. Rc1 {[%clk 0:00:56]}  f6 {[%clk 0:01:10]} 18. Nfd4 {[%clk 0:00:32]}  Nxd6 {[%clk 0:00:24]} 19. Nxd6 {[%clk 0:00:26]}  e5 {[%clk 0:00:23]} 20. N4b5 {[%clk 0:00:22]}  Bc6 {[%clk 0:00:22]} 21. Qd2 {[%clk 0:00:18]}  Nc7 {[%clk 0:00:14]} 22. Qa5 {[%clk 0:00:17]}  Ne6 {[%clk 0:00:11]} 23. Red1 {[%clk 0:00:15]}  a6 {[%clk 0:00:08]} 24. Nc3 {[%clk 0:00:15]}  d4 {[%clk 0:00:08]} 25. Nce4 {[%clk 0:00:08]}  Rab8 {[%clk 0:00:05]} 26. Qd2 {[%clk 0:00:05]}  Bxa4 {[%clk 0:00:04]} 27. Re1 {[%clk 0:00:06]}  Bc6 {[%clk 0:00:05]} 28. f3 {[%clk 0:00:05]}  Rb3 {[%clk 0:00:04]} 29. Qc2 {[%clk 0:00:05]}  Rdb8 {[%clk 0:00:04]} 30. Rb1 {[%clk 0:00:03]}  Nf4 {[%clk 0:00:03]} 31. Kh1 {[%clk 0:00:03]}  Nd3 {[%clk 0:00:03]} 32. Qc4+ {[%clk 0:00:04]}  Kf8 {[%clk 0:00:02]} 33. Re2 {[%clk 0:00:03]}  R8b4 {[%clk 0:00:02]} 34. Qc2 {[%clk 0:00:03]}  Bb5 {[%clk 0:00:02]} 35. Rd2 {[%clk 0:00:04]}  Ba4 {[%clk 0:00:01]} 36. Qd1 {[%clk 0:00:04]}  Nxc5 {[%clk 0:00:01]} 37. Nxc5 {[%clk 0:00:04]}  Qxd6 {[%clk 0:00:02]} 38. Nxb3 {[%clk 0:00:04]}  Bxb3 {[%clk 0:00:03]} 39. Qe1 {[%clk 0:00:05]}  a5 {[%clk 0:00:03]} 40. Rc1 {[%clk 0:00:05]}  Bd5 {[%clk 0:00:03]} 41. Rdc2 {[%clk 0:00:05]}  h6 {[%clk 0:00:02]} 42. Rc8+ {[%clk 0:00:06]} 1-0


[Site "https://www.chess.com"]

[Event "Titled Tuesday Blitz May 10 Early 2022"]
[White "Nogerbek, Kazybek"]
[Black "Terry, Renato"]
[WhiteFideId "13710427"]
[BlackFideId "3803457"]
[WhiteElo "2441"]
[BlackElo "2577"]
[Result "0-1"]
[Round "08"]
[TimeControl "180+1"]
[Date "2022.05.10"]
[WhiteClock "0:00:01"]
[BlackClock "0:00:01"]

1. Nf3 {[%clk 0:02:59]}  Nf6 {[%clk 0:03:00]} 2. c4 {[%clk 0:02:59]}  b6 {[%clk 0:02:59]} 3. g3 {[%clk 0:02:58]}  Bb7 {[%clk 0:02:59]} 4. Bg2 {[%clk 0:02:58]}  c5 {[%clk 0:03:00]} 5. O-O {[%clk 0:02:58]}  g6 {[%clk 0:03:00]} 6. b3 {[%clk 0:02:59]}  Bg7 {[%clk 0:03:00]} 7. Bb2 {[%clk 0:03:00]}  O-O {[%clk 0:03:01]} 8. Nc3 {[%clk 0:03:00]}  Nc6 {[%clk 0:02:56]} 9. d4 {[%clk 0:02:51]}  Nxd4 {[%clk 0:02:56]} 10. Nxd4 {[%clk 0:02:52]}  Bxg2 {[%clk 0:02:56]} 11. Kxg2 {[%clk 0:02:52]}  cxd4 {[%clk 0:02:56]} 12. Qxd4 {[%clk 0:02:52]}  d6 {[%clk 0:02:53]} 13. Rfd1 {[%clk 0:02:50]}  Qd7 {[%clk 0:02:48]} 14. Nd5 {[%clk 0:02:49]}  Qb7 {[%clk 0:02:47]} 15. Kg1 {[%clk 0:02:47]}  Rac8 {[%clk 0:02:38]} 16. Rac1 {[%clk 0:02:42]}  Rc5 {[%clk 0:02:34]} 17. Ne3 {[%clk 0:02:25]}  Rfc8 {[%clk 0:02:30]} 18. Qd3 {[%clk 0:02:23]}  Rh5 {[%clk 0:02:14]} 19. Bxf6 {[%clk 0:02:17]}  Bxf6 {[%clk 0:02:12]} 20. Nd5 {[%clk 0:02:17]}  Bg7 {[%clk 0:01:57]} 21. Qe4 {[%clk 0:02:16]}  Kf8 {[%clk 0:01:58]} 22. e3 {[%clk 0:01:53]}  Qd7 {[%clk 0:01:16]} 23. h4 {[%clk 0:01:47]}  Re8 {[%clk 0:01:08]} 24. a4 {[%clk 0:01:41]}  Re5 {[%clk 0:00:55]} 25. Qg2 {[%clk 0:01:33]}  h6 {[%clk 0:00:54]} 26. Rc2 {[%clk 0:01:27]}  Qf5 {[%clk 0:00:52]} 27. Rcd2 {[%clk 0:01:25]}  Qe4 {[%clk 0:00:49]} 28. a5 {[%clk 0:01:22]}  Qxg2+ {[%clk 0:00:42]} 29. Kxg2 {[%clk 0:01:22]}  bxa5 {[%clk 0:00:37]} 30. Ra2 {[%clk 0:01:21]}  Rb8 {[%clk 0:00:37]} 31. Rd3 {[%clk 0:01:21]}  e6 {[%clk 0:00:32]} 32. Nc7 {[%clk 0:01:21]}  Ke7 {[%clk 0:00:26]} 33. Nb5 {[%clk 0:01:17]}  Rexb5 {[%clk 0:00:27]} 34. cxb5 {[%clk 0:01:17]}  Rxb5 {[%clk 0:00:28]} 35. b4 {[%clk 0:01:13]}  axb4 {[%clk 0:00:12]} 36. Rxa7+ {[%clk 0:01:14]}  Ke8 {[%clk 0:00:09]} 37. Rxd6 {[%clk 0:00:30]}  b3 {[%clk 0:00:09]} 38. Rc6 {[%clk 0:00:27]}  Rb8 {[%clk 0:00:09]} 39. Rc1 {[%clk 0:00:12]}  b2 {[%clk 0:00:09]} 40. Rb1 {[%clk 0:00:12]}  Rc8 {[%clk 0:00:08]} 41. Rb7 {[%clk 0:00:08]}  Rc2 {[%clk 0:00:07]} 42. Kf3 {[%clk 0:00:07]}  Bf6 {[%clk 0:00:06]} 43. Rb4 {[%clk 0:00:04]}  Kf8 {[%clk 0:00:06]} 44. Rb7 {[%clk 0:00:04]}  Kg7 {[%clk 0:00:06]} 45. Kg2 {[%clk 0:00:02]}  g5 {[%clk 0:00:06]} 46. hxg5 {[%clk 0:00:03]}  hxg5 {[%clk 0:00:06]} 47. Kf3 {[%clk 0:00:04]}  Kg6 {[%clk 0:00:07]} 48. g4 {[%clk 0:00:04]}  Rd2 {[%clk 0:00:07]} 49. Rb5 {[%clk 0:00:03]}  Rc2 {[%clk 0:00:07]} 50. Rb7 {[%clk 0:00:04]}  Be5 {[%clk 0:00:07]} 51. Rb5 {[%clk 0:00:04]}  Kf6 {[%clk 0:00:08]} 52. Rb7 {[%clk 0:00:04]}  Bc3 {[%clk 0:00:07]} 53. Rb6 {[%clk 0:00:02]}  Ke5 {[%clk 0:00:06]} 54. Rb5+ {[%clk 0:00:03]}  Kd6 {[%clk 0:00:07]} 55. Rb6+ {[%clk 0:00:03]}  Kc5 {[%clk 0:00:06]} 56. Rb8 {[%clk 0:00:04]}  Kc4 {[%clk 0:00:05]} 57. Rb7 {[%clk 0:00:03]}  f6 {[%clk 0:00:05]} 58. Rb6 {[%clk 0:00:02]}  e5 {[%clk 0:00:04]} 59. Rb7 {[%clk 0:00:01]}  e4+ {[%clk 0:00:04]} 60. Kxe4 {[%clk 0:00:01]}  Rxf2 {[%clk 0:00:05]} 61. Rc7+ {[%clk 0:00:02]}  Kb3 {[%clk 0:00:05]} 62. Rd1 {[%clk 0:00:01]}  Rd2 {[%clk 0:00:02]} 63. Rh1 {[%clk 0:00:01]}  Kc2 {[%clk 0:00:02]} 64. Rb7 {[%clk 0:00:01]}  Rf2 {[%clk 0:00:01]} 0-1


[Site "https://www.chess.com"]

[Event "Titled Tuesday Blitz May 10 Early 2022"]
[White "Oganian, Miran"]
[Black "Bluebaum, Matthias"]
[WhiteFideId "4122488"]
[BlackFideId "24651516"]
[WhiteElo "2357"]
[BlackElo "2556"]
[Result "1/2-1/2"]
[Round "08"]
[TimeControl "180+1"]
[Date "2022.05.10"]
[WhiteClock "0:00:21"]
[BlackClock "0:00:34"]

1. e4 {[%clk 0:02:59]}  c6 {[%clk 0:03:00]} 2. d4 {[%clk 0:02:59]}  d5 {[%clk 0:03:01]} 3. Nc3 {[%clk 0:03:00]}  dxe4 {[%clk 0:02:59]} 4. Nxe4 {[%clk 0:02:59]}  Nf6 {[%clk 0:03:00]} 5. Nxf6+ {[%clk 0:02:56]}  exf6 {[%clk 0:03:01]} 6. Bd3 {[%clk 0:02:56]}  Qxd4 {[%clk 0:03:01]} 7. Nf3 {[%clk 0:02:55]}  Qd6 {[%clk 0:02:56]} 8. O-O {[%clk 0:02:55]}  Be7 {[%clk 0:02:56]} 9. Re1 {[%clk 0:02:55]}  O-O {[%clk 0:02:55]} 10. Nd4 {[%clk 0:02:45]}  g6 {[%clk 0:02:48]} 11. Bh6 {[%clk 0:02:43]}  Re8 {[%clk 0:02:39]} 12. c3 {[%clk 0:02:08]}  Nd7 {[%clk 0:02:17]} 13. Qf3 {[%clk 0:02:03]}  Ne5 {[%clk 0:02:04]} 14. Qg3 {[%clk 0:02:03]}  Bd7 {[%clk 0:02:04]} 15. Bc2 {[%clk 0:01:54]}  Bf8 {[%clk 0:02:01]} 16. Bf4 {[%clk 0:01:40]}  Bg7 {[%clk 0:01:51]} 17. Rad1 {[%clk 0:01:39]}  Qc7 {[%clk 0:01:50]} 18. h4 {[%clk 0:01:38]}  h5 {[%clk 0:01:45]} 19. Bb3 {[%clk 0:01:35]}  c5 {[%clk 0:01:34]} 20. Nf3 {[%clk 0:01:25]}  c4 {[%clk 0:01:31]} 21. Bxe5 {[%clk 0:01:15]}  fxe5 {[%clk 0:01:30]} 22. Bxc4 {[%clk 0:01:15]}  Bg4 {[%clk 0:01:20]} 23. Bd5 {[%clk 0:01:14]}  Bf6 {[%clk 0:01:13]} 24. Re4 {[%clk 0:01:07]}  Rad8 {[%clk 0:01:06]} 25. c4 {[%clk 0:01:04]}  Kg7 {[%clk 0:01:00]} 26. Rde1 {[%clk 0:01:02]}  b5 {[%clk 0:00:56]} 27. b3 {[%clk 0:01:01]}  bxc4 {[%clk 0:00:56]} 28. bxc4 {[%clk 0:01:02]}  Rd7 {[%clk 0:00:45]} 29. Nxe5 {[%clk 0:00:52]}  Rde7 {[%clk 0:00:33]} 30. Nxg4 {[%clk 0:00:37]}  Qxg3 {[%clk 0:00:33]} 31. fxg3 {[%clk 0:00:35]}  hxg4 {[%clk 0:00:34]} 32. Rxe7 {[%clk 0:00:33]}  Rxe7 {[%clk 0:00:35]} 33. Rxe7 {[%clk 0:00:25]}  Bxe7 {[%clk 0:00:35]} 34. Kf2 {[%clk 0:00:25]}  Bc5+ {[%clk 0:00:35]} 35. Ke2 {[%clk 0:00:21]}  f5 {[%clk 0:00:35]} 36. Be6 {[%clk 0:00:13]}  Kf6 {[%clk 0:00:36]} 37. Bd7 {[%clk 0:00:14]}  Bd6 {[%clk 0:00:36]} 38. Kf2 {[%clk 0:00:14]}  Bc5+ {[%clk 0:00:37]} 39. Ke2 {[%clk 0:00:15]}  Ke7 {[%clk 0:00:34]} 40. Bc6 {[%clk 0:00:14]}  Kf7 {[%clk 0:00:34]} 41. Bd5+ {[%clk 0:00:14]}  Kf6 {[%clk 0:00:34]} 42. Bc6 {[%clk 0:00:15]}  Bd6 {[%clk 0:00:31]} 43. Kf2 {[%clk 0:00:15]}  Be5 {[%clk 0:00:31]} 44. Be8 {[%clk 0:00:14]}  Bd4+ {[%clk 0:00:31]} 45. Ke2 {[%clk 0:00:14]}  Bc5 {[%clk 0:00:30]} 46. h5 {[%clk 0:00:13]}  gxh5 {[%clk 0:00:24]} 47. Bxh5 {[%clk 0:00:14]}  Bd6 {[%clk 0:00:23]} 48. Kf2 {[%clk 0:00:14]}  Bc5+ {[%clk 0:00:24]} 49. Ke2 {[%clk 0:00:14]}  Bd6 {[%clk 0:00:24]} 50. Be8 {[%clk 0:00:14]}  Bxg3 {[%clk 0:00:24]} 51. c5 {[%clk 0:00:15]}  Ke6 {[%clk 0:00:22]} 52. c6 {[%clk 0:00:15]}  Bc7 {[%clk 0:00:20]} 53. Bd7+ {[%clk 0:00:16]}  Ke5 {[%clk 0:00:21]} 54. g3 {[%clk 0:00:12]}  Kf6 {[%clk 0:00:20]} 55. Kf2 {[%clk 0:00:12]}  Kg5 {[%clk 0:00:20]} 56. Kg2 {[%clk 0:00:12]}  Bd6 {[%clk 0:00:21]} 57. Kf2 {[%clk 0:00:12]}  Be5 {[%clk 0:00:21]} 58. a4 {[%clk 0:00:12]}  Bc7 {[%clk 0:00:21]} 59. Kg2 {[%clk 0:00:13]}  Bd6 {[%clk 0:00:22]} 60. a5 {[%clk 0:00:12]}  a6 {[%clk 0:00:21]} 61. Bc8 {[%clk 0:00:12]}  Bc7 {[%clk 0:00:22]} 62. Bxa6 {[%clk 0:00:13]}  Bxa5 {[%clk 0:00:23]} 63. Bc8 {[%clk 0:00:13]}  Bc7 {[%clk 0:00:24]} 64. Bd7 {[%clk 0:00:13]}  Bd6 {[%clk 0:00:24]} 65. Bc8 {[%clk 0:00:14]}  Be5 {[%clk 0:00:25]} 66. Bd7 {[%clk 0:00:14]}  Bd6 {[%clk 0:00:25]} 67. Bc8 {[%clk 0:00:14]}  Kf6 {[%clk 0:00:26]} 68. Bb7 {[%clk 0:00:13]}  Bc7 {[%clk 0:00:25]} 69. Ba6 {[%clk 0:00:13]}  Ke5 {[%clk 0:00:26]} 70. Bd3 {[%clk 0:00:13]}  Ke6 {[%clk 0:00:26]} 71. Bc2 {[%clk 0:00:14]}  Be5 {[%clk 0:00:25]} 72. Bb1 {[%clk 0:00:14]}  Bd6 {[%clk 0:00:25]} 73. Bc2 {[%clk 0:00:15]}  Bc7 {[%clk 0:00:26]} 74. Bb1 {[%clk 0:00:15]}  Ke5 {[%clk 0:00:26]} 75. Bc2 {[%clk 0:00:15]}  Bb6 {[%clk 0:00:27]} 76. Bd3 {[%clk 0:00:15]}  Kf6 {[%clk 0:00:27]} 77. Bc2 {[%clk 0:00:16]}  Kg5 {[%clk 0:00:28]} 78. Bb1 {[%clk 0:00:16]}  Bc7 {[%clk 0:00:28]} 79. Bc2 {[%clk 0:00:17]}  Be5 {[%clk 0:00:28]} 80. Bd3 {[%clk 0:00:17]}  Bd6 {[%clk 0:00:28]} 81. Bc2 {[%clk 0:00:17]}  Kg6 {[%clk 0:00:29]} 82. Bb1 {[%clk 0:00:18]}  Kf6 {[%clk 0:00:29]} 83. Bd3 {[%clk 0:00:18]}  Ke6 {[%clk 0:00:30]} 84. Bc2 {[%clk 0:00:18]}  Bc7 {[%clk 0:00:30]} 85. Bb1 {[%clk 0:00:19]}  Be5 {[%clk 0:00:31]} 86. Ba2+ {[%clk 0:00:19]}  Kf6 {[%clk 0:00:31]} 87. Bb1 {[%clk 0:00:20]}  Bc7 {[%clk 0:00:32]} 88. Bc2 {[%clk 0:00:20]}  Kg5 {[%clk 0:00:32]} 89. Bd3 {[%clk 0:00:20]}  Kf6 {[%clk 0:00:33]} 90. Bc2 {[%clk 0:00:20]}  Kg5 {[%clk 0:00:33]} 91. Bd3 {[%clk 0:00:21]}  Kf6 {[%clk 0:00:34]} 92. Bc2 {[%clk 0:00:21]} 1/2-1/2


[Site "https://www.chess.com"]

[Event "Titled Tuesday Blitz May 10 Early 2022"]
[White "Olsen, Filip Boe"]
[Black "Kwon, Sehyun"]
[WhiteFideId "1440640"]
[BlackFideId "13203088"]
[WhiteElo "2247"]
[BlackElo "1778"]
[Result "1-0"]
[Round "08"]
[TimeControl "180+1"]
[Date "2022.05.11"]
[WhiteClock "0:00:33"]
[BlackClock "0:00:03"]

1. d4 {[%clk 0:03:00]}  d5 {[%clk 0:02:59]} 2. Nf3 {[%clk 0:03:01]}  c6 {[%clk 0:03:00]} 3. Bf4 {[%clk 0:03:01]}  Nf6 {[%clk 0:02:54]} 4. e3 {[%clk 0:03:01]}  Bg4 {[%clk 0:02:53]} 5. c4 {[%clk 0:03:00]}  e6 {[%clk 0:02:53]} 6. Nc3 {[%clk 0:03:01]}  Nbd7 {[%clk 0:02:51]} 7. Qb3 {[%clk 0:03:00]}  Qc8 {[%clk 0:02:37]} 8. Be2 {[%clk 0:02:56]}  Be7 {[%clk 0:02:36]} 9. Rc1 {[%clk 0:02:56]}  O-O {[%clk 0:02:35]} 10. O-O {[%clk 0:02:56]}  Ne4 {[%clk 0:02:30]} 11. Rfd1 {[%clk 0:02:49]}  Nxc3 {[%clk 0:02:27]} 12. bxc3 {[%clk 0:02:44]}  Re8 {[%clk 0:02:24]} 13. cxd5 {[%clk 0:02:44]}  exd5 {[%clk 0:02:24]} 14. c4 {[%clk 0:02:45]}  Nf6 {[%clk 0:02:10]} 15. Rb1 {[%clk 0:02:31]}  Ne4 {[%clk 0:01:57]} 16. cxd5 {[%clk 0:02:13]}  cxd5 {[%clk 0:01:56]} 17. Rdc1 {[%clk 0:02:13]}  Qf5 {[%clk 0:01:50]} 18. Qxb7 {[%clk 0:02:08]}  Bxf3 {[%clk 0:01:46]} 19. Bxf3 {[%clk 0:02:08]}  Nd2 {[%clk 0:01:45]} 20. Qxd5 {[%clk 0:02:07]}  Qg6 {[%clk 0:00:32]} 21. Rb7 {[%clk 0:01:53]}  Rad8 {[%clk 0:00:27]} 22. Rxe7 {[%clk 0:01:34]}  Nxf3+ {[%clk 0:00:27]} 23. Kh1 {[%clk 0:01:32]}  Nd2 {[%clk 0:00:20]} 24. Rxe8+ {[%clk 0:01:14]}  Rxe8 {[%clk 0:00:20]} 25. h3 {[%clk 0:01:13]}  Ne4 {[%clk 0:00:19]} 26. Kg1 {[%clk 0:01:13]}  h6 {[%clk 0:00:17]} 27. Qc6 {[%clk 0:01:12]}  Re6 {[%clk 0:00:16]} 28. Qa8+ {[%clk 0:01:09]}  Kh7 {[%clk 0:00:15]} 29. Rc8 {[%clk 0:01:04]}  Qf5 {[%clk 0:00:16]} 30. Rh8+ {[%clk 0:01:02]}  Kg6 {[%clk 0:00:16]} 31. Rg8 {[%clk 0:00:58]}  Nf6 {[%clk 0:00:14]} 32. Rb8 {[%clk 0:00:54]}  Nh5 {[%clk 0:00:09]} 33. g4 {[%clk 0:00:50]}  Qd3 {[%clk 0:00:03]} 34. gxh5+ {[%clk 0:00:50]}  Kxh5 {[%clk 0:00:04]} 35. Qf3+ {[%clk 0:00:50]}  Kg6 {[%clk 0:00:04]} 36. Be5 {[%clk 0:00:46]}  Kh7 {[%clk 0:00:03]} 37. Kh2 {[%clk 0:00:43]}  Rg6 {[%clk 0:00:03]} 38. Qxf7 {[%clk 0:00:36]}  Rg5 {[%clk 0:00:02]} 39. Qg8+ {[%clk 0:00:35]}  Kg6 {[%clk 0:00:02]} 40. Qxg7+ {[%clk 0:00:35]}  Kh5 {[%clk 0:00:03]} 41. Qf7+ {[%clk 0:00:35]}  Kh4 {[%clk 0:00:03]} 42. Bg3+ {[%clk 0:00:33]} 1-0


[Site "https://www.chess.com"]

[Event "Titled Tuesday Blitz May 10 Early 2022"]
[White "Omelja, Artem"]
[Black "Cherniaiev, Tykhon"]
[WhiteFideId "14119846"]
[BlackFideId "14182360"]
[WhiteElo "2382"]
[BlackElo "2289"]
[Result "0-1"]
[Round "08"]
[TimeControl "180+1"]
[Date "2022.05.11"]
[WhiteClock "0:00:01"]
[BlackClock "0:00:43"]

1. d4 {[%clk 0:02:59]}  Nf6 {[%clk 0:02:57]} 2. c4 {[%clk 0:02:56]}  e6 {[%clk 0:02:56]} 3. Nf3 {[%clk 0:02:55]}  d5 {[%clk 0:02:55]} 4. Nc3 {[%clk 0:02:55]}  Be7 {[%clk 0:02:54]} 5. Bg5 {[%clk 0:02:52]}  O-O {[%clk 0:02:54]} 6. e3 {[%clk 0:02:47]}  dxc4 {[%clk 0:02:52]} 7. Bxc4 {[%clk 0:02:46]}  c5 {[%clk 0:02:51]} 8. O-O {[%clk 0:02:44]}  cxd4 {[%clk 0:02:51]} 9. Nxd4 {[%clk 0:02:45]}  Nc6 {[%clk 0:02:48]} 10. Nxc6 {[%clk 0:02:34]}  bxc6 {[%clk 0:02:49]} 11. Qe2 {[%clk 0:02:34]}  Qa5 {[%clk 0:02:46]} 12. Bh4 {[%clk 0:02:23]}  Rb8 {[%clk 0:02:46]} 13. Rfd1 {[%clk 0:02:17]}  Bb7 {[%clk 0:02:38]} 14. Rd2 {[%clk 0:01:52]}  Ba8 {[%clk 0:02:29]} 15. Rad1 {[%clk 0:01:46]}  h6 {[%clk 0:02:26]} 16. Bb3 {[%clk 0:01:42]}  Rb4 {[%clk 0:02:23]} 17. Bxf6 {[%clk 0:01:29]}  Bxf6 {[%clk 0:02:24]} 18. Rd7 {[%clk 0:01:28]}  c5 {[%clk 0:02:20]} 19. f3 {[%clk 0:01:21]}  Rfb8 {[%clk 0:02:03]} 20. R1d2 {[%clk 0:00:57]}  Bc6 {[%clk 0:01:29]} 21. R7d6 {[%clk 0:00:54]}  Qc7 {[%clk 0:01:28]} 22. Ne4 {[%clk 0:00:41]}  Be7 {[%clk 0:01:22]} 23. Qa6 {[%clk 0:00:12]}  Bxd6 {[%clk 0:01:11]} 24. Rxd6 {[%clk 0:00:10]}  Bxe4 {[%clk 0:01:10]} 25. fxe4 {[%clk 0:00:09]}  c4 {[%clk 0:00:50]} 26. Bd1 {[%clk 0:00:04]}  Rxb2 {[%clk 0:00:48]} 27. e5 {[%clk 0:00:04]}  c3 {[%clk 0:00:48]} 28. Rc6 {[%clk 0:00:04]}  Qxe5 {[%clk 0:00:44]} 29. Qd3 {[%clk 0:00:05]}  Rd2 {[%clk 0:00:42]} 30. Qf1 {[%clk 0:00:02]}  Qxe3+ {[%clk 0:00:42]} 31. Kh1 {[%clk 0:00:03]}  Qf2 {[%clk 0:00:42]} 32. Qxf2 {[%clk 0:00:01]}  Rxf2 {[%clk 0:00:43]} 0-1


[Site "https://www.chess.com"]